bitfinex-derivatives/quotes_BNBF0:USTF0_20250524
["timestamp","ask_amount","ask_price","bid_price","bid_amount"]
[1748126446365,1.59025218,669.57,669.18,1.002]
[1748126446561,1.59025218,669.56,669.18,1.002]
[1748126446762,1.59025218,669.55,669.18,1.002]
[1748126446965,1.59025218,669.54,669.18,1.002]
[1748126447163,1.59025218,669.53,669.18,1.002]
[1748126447366,1.59025218,669.52,669.18,1.002]
[1748126447663,1.48948189,669.51,669.18,1.002]
[1748126447865,0.54605246,669.5,669.18,1.002]
[1748126448063,1.48948189,669.49,669.18,1.002]
[1748126448269,0.54605246,669.48,669.18,1.002]
[1748126448468,0.54605246,669.47,669.18,1.002]
[1748126448668,0.54605246,669.46,669.18,1.002]
[1748126448867,0.54605246,669.45,669.18,1.002]
[1748126449170,0.94342943,669.46,669.18,1.002]
[1748126449469,0.94342943,669.44,669.18,1.002]
[1748126449669,0.94342943,669.45,669.18,1.002]
[1748126449968,0.94342943,669.44,669.18,1.002]
[1748126450669,0.94342943,669.43,669.18,1.002]
[1748126450968,0.94342943,669.42,669.18,1.002]
[1748126451470,0.94342943,669.41,669.18,1.002]
[1748126451770,1.10976165,669.83,669.18,1.002]
[1748126451971,1.58711649,669.82,669.18,1.002]
[1748126452172,2.69687814,669.81,669.18,1.002]
[1748126452366,2.5272213,669.8,669.18,1.002]
[1748126452567,1.58711649,669.79,669.18,1.002]
[1748126452867,2.52714951,669.78,669.18,1.002]
[1748126453067,1.5870447,669.77,669.18,1.002]
[1748126453268,1.88565912,669.76,669.18,1.002]
[1748126453468,1.5870447,669.75,669.18,1.002]
[1748126453675,1.5870447,669.74,669.18,1.002]
[1748126453873,2.52714951,669.73,669.18,1.002]
[1748126454073,1.5870447,669.72,669.18,1.002]
[1748126454274,2.52714951,669.71,669.18,1.002]
[1748126454572,2.52700445,669.7,669.18,1.002]
[1748126454776,1.58689964,669.69,669.18,1.002]
[1748126455075,1.58689964,669.68,669.18,1.002]
[1748126455274,1.58689964,669.67,669.18,1.002]
[1748126455472,2.52700445,669.66,669.18,1.002]
[1748126455673,1.58689964,669.65,669.18,1.002]
[1748126455971,2.52700445,669.64,669.18,1.002]
[1748126456172,1.58689964,669.63,669.18,1.002]
[1748126456373,1.58618163,669.62,669.18,1.002]
[1748126456575,2.52628644,669.61,669.18,1.002]
[1748126456777,1.58618163,669.6,669.18,1.002]
[1748126456977,2.52628644,669.59,669.18,1.002]
[1748126457175,1.58618163,669.58,669.18,1.002]
[1748126457374,1.58618163,669.57,669.18,1.002]
[1748126457576,1.58618163,669.56,669.18,1.002]
[1748126457771,2.52628644,669.55,669.18,1.002]
[1748126457972,1.58618163,669.54,669.18,1.002]
[1748126458176,0.94010481,669.55,669.18,1.002]
[1748126458177,1.58595538,669.53,669.18,1.002]
[1748126458379,1.58595538,669.52,669.18,1.002]
[1748126458672,1.48503504,669.51,669.18,1.002]
[1748126458873,0.54493023,669.5,669.18,1.002]
[1748126459172,1.48503504,669.49,669.18,1.002]
[1748126459376,0.54493023,669.48,669.18,1.002]
[1748126459576,0.54493023,669.47,669.18,1.002]
[1748126459776,0.54493023,669.46,669.18,1.002]
[1748126460076,0.54493023,669.45,669.18,1.002]
[1748126460271,0.54493023,669.44,669.18,1.002]
[1748126460477,0.94010481,669.43,669.18,1.002]
[1748126461077,1.10976165,669.73,669.18,1.002]
[1748126461273,1.58585873,669.72,669.18,1.002]
[1748126461477,1.58585873,669.71,669.18,1.002]
[1748126461677,1.58585873,669.7,669.18,1.002]
[1748126461877,1.58585873,669.69,669.18,1.002]
[1748126462076,1.58585873,669.68,669.18,1.002]
[1748126462376,1.58585873,669.67,669.18,1.002]
[1748126462576,2.52254439,669.66,669.18,1.002]
[1748126462872,2.52251802,669.65,669.18,1.002]
[1748126463071,2.52251802,669.64,669.18,1.002]
[1748126463273,1.58583236,669.63,669.18,1.002]
[1748126463471,1.58583236,669.62,669.18,1.002]
[1748126463673,2.52251802,669.61,669.18,1.002]
[1748126463879,2.52251802,669.6,669.18,1.002]
[1748126464081,1.58583236,669.59,669.18,1.002]
[1748126464273,1.58583236,669.58,669.18,1.002]
[1748126464476,1.58582448,669.57,669.18,1.002]
[1748126464773,2.52251014,669.56,669.18,1.002]
[1748126464975,2.52251014,669.55,669.18,1.002]
[1748126465275,2.52251014,669.54,669.18,1.002]
[1748126465476,2.52251014,669.53,669.18,1.002]
[1748126465674,2.52259175,669.52,669.18,1.002]
[1748126465874,0.54488526,669.51,669.18,1.002]
[1748126466078,1.48157092,669.5,669.18,1.002]
[1748126466280,1.48157092,669.49,669.18,1.002]
[1748126466480,1.48157092,669.48,669.18,1.002]
[1748126466682,1.48157092,669.47,669.18,1.002]
[1748126466875,0.54488526,669.46,669.18,1.002]
[1748126467075,0.54488526,669.45,669.18,1.002]
[1748126467281,0.54488526,669.44,669.18,1.002]
[1748126467578,1.48157092,669.43,669.18,1.002]
[1748126467782,0.54488526,669.42,668.88,0.47560778]
[1748126467983,1.48157092,669.41,668.91,0.47560778]
[1748126468284,1.48157092,669.4,668.91,0.47560778]
[1748126468581,1.48157092,669.39,668.91,0.47560778]
[1748126468881,0.93668566,669.38,668.91,0.47560778]
[1748126469085,0.29861442,669.76,668.91,0.47560778]
[1748126469283,2.52037576,669.75,668.91,0.47560778]
[1748126469583,2.8189991,669.74,668.91,0.47560778]
[1748126469785,1.10976165,669.77,668.7,0.47560778]
[1748126469786,2.81900356,669.73,668.7,0.47560778]
[1748126470085,2.27406213,669.72,668.7,0.47560778]
[1748126470294,1.97542987,669.71,668.7,0.47560778]
[1748126470482,1.97542987,669.7,668.7,0.47560778]
[1748126470683,0.93440581,669.69,668.7,0.47560778]
[1748126470878,1.10976165,669.64,668.7,0.47560778]
[1748126471182,0.93440581,669.63,668.7,0.47560778]
[1748126471381,0.93440581,669.62,668.7,0.47560778]
[1748126471577,0.93440581,669.61,668.7,0.47560778]
[1748126471778,0.93440581,669.6,668.71,0.732]
[1748126471982,0.93440581,669.59,668.98,0.47560778]
[1748126472183,0.93440581,669.58,668.98,0.47560778]
[1748126472483,0.93440581,669.57,668.98,0.47560778]
[1748126472678,0.93440581,669.56,668.98,0.47560778]
[1748126472882,2.52035053,669.55,668.98,0.47560778]
[1748126473082,2.52035053,669.54,668.98,0.47560778]
[1748126473382,2.52035053,669.53,668.98,0.47560778]
[1748126473582,2.52035053,669.52,668.98,0.47560778]
[1748126473783,2.52035053,669.51,668.98,0.47560778]
[1748126473983,2.52035053,669.5,668.98,0.47560778]
[1748126474178,2.52035053,669.49,668.96,0.47560778]
[1748126474378,2.52035053,669.48,668.96,0.47560778]
[1748126474581,2.52064741,669.47,668.96,0.47560778]
[1748126474781,1.47931002,669.46,668.96,0.47560778]
[1748126474983,1.47931002,669.45,668.96,0.47560778]
[1748126475183,1.47931002,669.44,668.96,0.47560778]
[1748126475378,1.47931002,669.43,668.96,0.47560778]
[1748126475580,1.47931002,669.42,668.96,0.47560778]
[1748126475778,1.47931002,669.41,668.76,0.47560778]
[1748126475982,0.93440581,669.4,668.76,0.47560778]
[1748126476183,0.29863226,669.72,668.76,0.47560778]
[1748126476486,2.52109441,669.71,668.76,0.47560778]
[1748126476783,2.81993433,669.7,668.76,0.47560778]
[1748126476980,2.81993879,669.69,668.76,0.47560778]
[1748126477184,2.81994325,669.68,668.76,0.47560778]
[1748126477383,2.81994771,669.67,668.76,0.47560778]
[1748126477584,2.81995217,669.66,668.76,0.47560778]
[1748126477783,2.81995663,669.65,668.76,0.47560778]
[1748126477985,2.81996109,669.64,668.81,0.47560778]
[1748126478283,2.81996555,669.63,668.81,0.47560778]
[1748126478486,2.81997001,669.62,668.81,0.47560778]
[1748126478681,2.52169105,669.61,668.81,0.47560778]
[1748126478880,2.52169105,669.6,668.81,0.47560778]
[1748126479081,2.52169105,669.59,668.81,0.47560778]
[1748126479284,2.52169105,669.58,668.81,0.47560778]
[1748126479480,1.58780215,669.57,668.81,0.47560778]
[1748126479785,2.52169105,669.56,668.81,0.47560778]
[1748126479986,1.58780215,669.55,668.81,0.47560778]
[1748126480186,1.58780215,669.54,668.81,0.47560778]
[1748126480387,1.58894221,669.53,668.81,0.47560778]
[1748126480587,1.58894221,669.52,668.81,0.47560778]
[1748126480886,1.58894221,669.51,668.81,0.47560778]
[1748126481086,1.58894221,669.5,668.81,0.47560778]
[1748126481281,2.52283111,669.49,668.81,0.47560778]
[1748126481485,1.58894221,669.48,668.81,0.47560778]
[1748126481685,2.52283111,669.47,668.81,0.47560778]
[1748126481882,0.54594569,669.46,668.81,0.47560778]
[1748126482082,0.54594569,669.45,668.81,0.47560778]
[1748126482393,0.54594569,669.44,668.81,0.47560778]
[1748126482583,1.47983459,669.43,668.8,0.47560778]
[1748126482785,0.54594569,669.42,668.8,0.47560778]
[1748126482986,1.47983459,669.41,668.8,0.47560778]
[1748126483187,0.54594569,669.4,668.8,0.47560778]
[1748126483388,0.54641747,669.39,668.8,0.47560778]
[1748126483589,0.54670778,669.38,668.8,0.47560778]
[1748126483789,0.9338889,669.37,668.8,0.47560778]
[1748126484387,0.9338889,669.36,668.8,0.47560778]
[1748126484587,0.9338889,669.36,668.78,0.47560778]
[1748126484788,0.9338889,669.36,668.78,1.15377615]
[1748126485086,0.9338889,669.35,668.78,1.15377615]
[1748126485291,0.54700991,669.34,668.78,1.15377615]
[1748126485591,0.54699461,669.33,668.78,1.15377615]
[1748126485793,0.54699461,669.32,668.78,1.15377615]
[1748126485987,0.9338889,669.33,668.78,1.15377615]
[1748126485988,1.48088351,669.31,668.78,1.15377615]
[1748126486190,0.54699461,669.3,668.97,0.47560778]
[1748126486388,0.54699461,669.29,668.97,0.47560778]
[1748126486693,0.54699461,669.28,668.97,0.47560778]
[1748126486893,0.54699461,669.27,668.97,0.47560778]
[1748126487088,0.54699461,669.26,668.97,0.47560778]
[1748126487291,1.48088351,669.25,668.97,0.47560778]
[1748126487490,0.9338889,669.25,668.97,0.47560778]
[1748126487692,0.54798328,669.24,668.97,0.47560778]
[1748126487892,0.9338889,669.24,668.97,0.47560778]
[1748126488089,1.48186866,669.23,668.97,0.47560778]
[1748126488291,0.9338889,669.23,668.78,0.47560778]
[1748126488497,0.54814857,669.22,668.78,0.47560778]
[1748126488697,0.9338889,669.23,668.78,0.47560778]
[1748126489098,0.9338889,669.22,668.78,0.47560778]
[1748126489398,0.9338889,669.21,668.78,0.47560778]
[1748126489896,0.9338889,669.2,668.78,0.47560778]
[1748126490300,0.9338889,669.2,668.78,1.15377615]
[1748126490501,0.9338889,669.19,668.78,1.15377615]
[1748126490901,0.9338889,669.18,668.78,1.15377615]
[1748126491501,1.10976165,669.41,668.78,1.15377615]
[1748126491704,1.59735615,669.4,668.78,1.15377615]
[1748126491903,1.59735615,669.39,668.78,1.15377615]
[1748126492202,1.59735615,669.38,668.78,1.15377615]
[1748126492405,2.54603259,669.37,668.79,0.67816837]
[1748126492602,1.59735615,669.36,668.79,1.86016837]
[1748126492803,0.94867644,669.37,668.79,1.86016837]
[1748126492804,1.59735615,669.35,668.79,1.86016837]
[1748126493102,1.59735615,669.34,668.79,1.86016837]
[1748126493402,1.59756088,669.33,668.79,1.86016837]
[1748126493601,1.59756088,669.32,668.79,1.86016837]
[1748126493797,2.54623732,669.31,668.79,1.86016837]
[1748126494001,1.59756088,669.3,668.79,1.86016837]
[1748126494201,2.54623732,669.29,668.79,1.86016837]
[1748126494398,1.59756088,669.28,668.8,0.67816837]
[1748126494600,2.54623732,669.27,668.8,0.67816837]
[1748126494803,2.54623732,669.26,668.8,0.67816837]
[1748126495000,0.54856709,669.25,668.8,0.67816837]
[1748126495197,0.54869765,669.24,668.8,0.67816837]
[1748126495503,1.49737409,669.23,668.8,0.67816837]
[1748126495703,1.49737409,669.22,668.8,0.67816837]
[1748126495903,0.54869765,669.21,668.8,0.67816837]
[1748126496106,0.94867644,669.2,668.8,0.67816837]
[1748126496304,0.94867644,669.19,668.8,0.67816837]
[1748126496606,0.94867644,669.19,668.79,1.182]
[1748126497102,0.94867644,669.18,668.79,1.182]
[1748126497607,0.94867644,669.17,668.79,1.182]
[1748126498107,1.10976165,669.44,668.79,1.182]
[1748126498407,2.54549525,669.43,668.79,1.182]
[1748126498606,2.54549525,669.42,668.79,1.182]
[1748126498807,1.59802821,669.41,668.79,1.182]
[1748126499004,1.59802821,669.4,668.79,1.86016837]
[1748126499208,2.54552284,669.39,668.79,1.86016837]
[1748126499404,1.59802821,669.38,668.79,1.86016837]
[1748126499603,1.59802821,669.37,668.79,1.86016837]
[1748126499806,1.59802821,669.36,668.79,1.86016837]
[1748126500003,2.54552284,669.35,668.79,1.86016837]
[1748126500208,1.59802821,669.34,668.79,1.86016837]
[1748126500407,2.54552284,669.33,668.79,1.86016837]
[1748126500603,1.59802821,669.32,668.79,1.86016837]
[1748126500803,1.59802821,669.31,668.79,1.86016837]
[1748126501010,1.59802821,669.3,668.79,1.86016837]
[1748126501203,2.54552284,669.29,668.79,1.86016837]
[1748126501407,1.59802821,669.28,668.79,1.86016837]
[1748126501610,1.59802821,669.27,668.79,1.86016837]
[1748126501811,1.59802821,669.26,668.79,1.86016837]
[1748126502011,2.54552284,669.25,668.79,1.86016837]
[1748126502213,1.49622358,669.24,668.79,1.86016837]
[1748126502410,0.54872895,669.23,668.79,1.86016837]
[1748126502610,0.54872895,669.22,668.79,1.86016837]
[1748126502911,1.49622358,669.21,668.8,0.67816837]
[1748126503210,0.94749463,669.2,668.8,0.67816837]
[1748126503513,0.94749463,669.19,668.8,0.67816837]
[1748126504010,0.94749463,669.18,668.8,0.67816837]
[1748126504412,0.94749463,669.17,668.8,0.67816837]
[1748126504707,0.94749463,669.16,668.79,1.86016837]
[1748126505013,0.94749463,669.15,668.79,1.86016837]
[1748126505411,1.10976165,669.43,668.79,1.86016837]
[1748126505606,1.59814332,669.42,668.79,1.86016837]
[1748126505806,2.5466631,669.41,668.79,1.86016837]
[1748126506009,2.5466631,669.4,668.79,1.86016837]
[1748126506213,1.59810385,669.39,668.79,1.86016837]
[1748126506407,2.54662363,669.38,668.79,1.86016837]
[1748126506712,1.59810385,669.37,668.79,1.86016837]
[1748126506912,2.54662363,669.36,668.82,0.67816837]
[1748126507108,1.59810385,669.35,668.82,0.67816837]
[1748126507312,2.54662363,669.34,668.82,0.67816837]
[1748126507509,1.59810385,669.33,668.82,0.67816837]
[1748126507712,2.54662363,669.32,668.88,0.47560778]
[1748126508014,1.59801486,669.31,668.88,0.47560778]
[1748126508212,1.59801486,669.3,668.88,0.47560778]
[1748126508411,2.54653464,669.29,668.88,0.47560778]
[1748126508615,1.59801486,669.28,668.88,0.47560778]
[1748126508812,2.54653464,669.27,668.88,0.47560778]
[1748126509010,1.59801486,669.26,668.88,0.47560778]
[1748126509207,1.59801486,669.25,668.88,0.47560778]
[1748126509411,1.59801486,669.24,668.88,0.47560778]
[1748126509612,1.59801486,669.23,668.88,0.47560778]
[1748126509812,1.59801486,669.22,668.88,0.47560778]
[1748126510009,2.54653464,669.21,668.88,0.47560778]
[1748126510212,2.54653464,669.21,668.79,1.182]
[1748126510213,1.59801486,669.2,668.79,1.182]
[1748126510409,1.49731853,669.19,668.79,1.182]
[1748126510609,1.49731853,669.18,668.79,1.86016837]
[1748126510814,0.54879875,669.17,668.79,1.86016837]
[1748126511011,1.49731853,669.16,668.79,1.86016837]
[1748126511315,0.94851978,669.16,668.79,1.86016837]
[1748126511616,0.94851978,669.15,668.79,1.86016837]
[1748126511815,0.94851978,669.14,668.79,1.86016837]
[1748126512015,0.94851978,669.13,668.79,1.86016837]
[1748126512216,0.94851978,669.13,668.82,0.47560778]
[1748126512710,0.94851978,669.12,668.82,0.47560778]
[1748126513019,1.10976165,669.35,668.82,0.47560778]
[1748126513315,1.59784431,669.34,668.82,0.47560778]
[1748126513516,1.59784519,669.33,668.82,0.47560778]
[1748126513717,1.59784519,669.32,668.82,0.47560778]
[1748126513910,1.59784519,669.31,668.82,0.47560778]
[1748126514115,2.54904223,669.3,668.82,0.47560778]
[1748126514416,2.54904223,669.29,668.82,0.47560778]
[1748126514610,1.59784519,669.28,668.82,0.47560778]
[1748126514810,2.54904223,669.27,668.82,0.47560778]
[1748126515015,1.59784519,669.26,668.82,0.47560778]
[1748126515215,1.59784519,669.25,668.82,0.47560778]
[1748126515419,2.54914029,669.24,668.82,0.47560778]
[1748126515715,2.54914029,669.23,668.83,0.47560778]
[1748126515916,1.59794325,669.22,668.83,0.47560778]
[1748126516217,2.54914029,669.21,668.83,0.47560778]
[1748126516417,1.59794325,669.2,668.83,0.47560778]
[1748126516618,2.54913016,669.19,668.83,0.47560778]
[1748126516818,1.59793312,669.18,668.83,0.47560778]
[1748126517019,1.59793312,669.17,668.83,0.47560778]
[1748126517314,1.59790442,669.16,668.83,0.47560778]
[1748126517521,2.54910146,669.15,668.83,0.47560778]
[1748126517716,1.59790442,669.14,668.83,0.47560778]
[1748126517912,1.5978015,669.13,668.84,0.47560778]
[1748126518117,2.54899854,669.12,668.84,0.47560778]
[1748126518318,1.59759755,669.11,668.84,0.47560778]
[1748126518619,0.54875187,669.1,668.84,0.47560778]
[1748126518815,0.54875187,669.09,668.84,0.47560778]
[1748126519019,0.54854726,669.08,668.84,0.47560778]
[1748126519218,1.4997443,669.07,668.84,0.47560778]
[1748126519413,0.54854726,669.06,668.84,0.47560778]
[1748126519621,0.54854726,669.05,668.84,0.47560778]
[1748126519817,1.4997443,669.04,668.84,0.47560778]
[1748126520018,1.4997443,669.03,668.84,0.47560778]
[1748126520221,1.4997443,669.03,668.79,1.182]
[1748126520222,1.49964113,669.02,668.79,1.182]
[1748126520521,0.95119704,669.01,668.79,1.182]
[1748126521322,1.10976165,669.24,668.79,1.182]
[1748126521522,1.59706167,669.23,668.79,1.182]
[1748126521823,2.54693456,669.22,668.79,1.182]
[1748126522125,2.54693456,669.21,668.79,1.182]
[1748126522321,2.54693456,669.2,668.79,1.182]
[1748126522522,1.59706167,669.19,668.79,1.182]
[1748126522723,1.59706167,669.18,668.79,1.182]
[1748126522921,2.54693456,669.17,668.79,1.65760778]
[1748126523122,1.59706167,669.16,668.79,1.65760778]
[1748126523423,2.54693456,669.15,668.79,1.65760778]
[1748126523723,2.54693456,669.14,668.79,1.65760778]
[1748126523923,0.54843788,669.13,668.79,1.65760778]
[1748126524224,1.49831077,669.12,668.79,1.65760778]
[1748126524422,1.49831077,669.11,668.79,1.65760778]
[1748126524617,0.54843788,669.1,668.79,1.65760778]
[1748126524818,0.54843788,669.09,668.79,1.65760778]
[1748126525022,0.54843788,669.08,668.79,1.65760778]
[1748126525223,0.54843788,669.07,668.79,1.65760778]
[1748126525423,0.54824216,669.06,668.79,1.65760778]
[1748126525623,0.94987289,669.09,668.79,1.65760778]
[1748126525823,0.54823753,669.08,668.79,1.65760778]
[1748126526121,1.49811042,669.07,668.79,1.65760778]
[1748126526326,0.54823753,669.06,668.79,1.65760778]
[1748126526625,0.94987289,669.05,668.79,1.65760778]
[1748126527220,0.94987289,669.04,668.79,1.65760778]
[1748126527628,0.94987289,669.03,668.79,1.65760778]
[1748126528426,0.94987289,669.02,668.79,1.65760778]
[1748126528627,0.94987289,669.02,668.79,0.47560778]
[1748126528927,0.94987289,669.01,668.79,0.47560778]
[1748126529125,0.94987289,669.01,668.63,0.67816837]
[1748126529732,0.94987289,669.0,668.63,0.67816837]
[1748126529931,0.54809997,668.99,668.63,0.67816837]
[1748126530132,0.94987289,668.98,668.63,0.67816837]
[1748126530328,0.94987289,668.97,668.63,0.67816837]
[1748126530833,0.94987289,668.96,668.52,0.67816837]
[1748126531334,1.10976165,669.24,668.52,0.67816837]
[1748126531534,1.5952434,669.23,668.52,0.67816837]
[1748126531834,1.5952434,669.22,668.52,0.67816837]
[1748126532033,1.5952434,669.21,668.52,0.67816837]
[1748126532232,1.5952434,669.2,668.52,0.67816837]
[1748126532428,1.5952434,669.19,668.52,0.67816837]
[1748126532631,1.5952434,669.19,668.5,0.47560778]
[1748126532632,1.5952434,669.18,668.5,0.67816837]
[1748126532828,1.04735201,669.17,668.5,0.67816837]
[1748126533028,2.5420641,669.16,668.5,0.67816837]
[1748126533232,2.5420641,669.15,668.5,0.67816837]
[1748126533433,1.59511006,669.14,668.5,0.67816837]
[1748126533634,1.59511006,669.13,668.5,0.67816837]
[1748126533834,2.5420641,669.12,668.5,0.67816837]
[1748126534134,1.59511006,669.11,668.5,0.67816837]
[1748126534331,2.5420641,669.1,668.5,0.67816837]
[1748126534636,1.59511006,669.09,668.49,0.67816837]
[1748126534829,1.59511006,669.08,668.49,0.67816837]
[1748126535031,1.59511006,669.07,668.49,0.67816837]
[1748126535332,1.59511006,669.06,668.49,0.67816837]
[1748126535630,1.49471209,669.05,668.49,0.67816837]
[1748126535829,0.54775805,669.04,668.49,0.67816837]
[1748126536034,1.49471209,669.03,668.49,0.67816837]
[1748126536231,0.54775805,669.02,668.49,0.67816837]
[1748126536534,0.94695404,669.03,668.49,0.67816837]
[1748126536834,1.49437245,669.02,668.49,0.67816837]
[1748126537034,1.49437245,669.02,668.4,1.042]
[1748126537035,0.94695404,669.02,668.48,0.67816837]
[1748126537235,0.94695404,669.01,668.48,0.67816837]
[1748126537633,0.94695404,669.0,668.48,0.67816837]
[1748126537937,0.94695404,668.99,668.48,0.67816837]
[1748126538338,0.94695404,668.99,668.49,0.67816837]
[1748126538540,1.10976165,669.24,668.49,0.67816837]
[1748126538840,1.59359552,669.23,668.49,0.67816837]
[1748126539039,1.59359552,669.22,668.49,0.67816837]
[1748126539233,2.54002325,669.21,668.49,0.67816837]
[1748126539436,2.54002325,669.2,668.49,0.67816837]
[1748126539636,2.54002325,669.19,668.49,0.67816837]
[1748126539834,1.49376389,669.18,668.49,0.67816837]
[1748126540038,2.53996813,669.17,668.49,0.67816837]
[1748126540238,2.53996813,669.16,668.49,0.67816837]
[1748126540436,1.59357447,669.15,668.48,0.67816837]
[1748126540638,2.53996813,669.14,668.48,0.67816837]
[1748126540835,2.53996813,669.13,668.48,0.67816837]
[1748126541042,2.53996813,669.12,668.48,0.67816837]
[1748126541237,0.94639366,669.11,668.48,0.67816837]
[1748126541544,2.53986581,669.1,668.48,0.67816837]
[1748126541743,2.53986581,669.09,668.48,0.67816837]
[1748126541942,2.53986581,669.08,668.48,0.67816837]
[1748126542243,0.5472606,669.07,668.51,0.67816837]
[1748126542443,1.49365426,669.06,668.51,0.67816837]
[1748126542637,0.5472606,669.05,668.51,0.67816837]
[1748126542839,0.94639366,669.04,668.51,0.67816837]
[1748126543044,0.94639366,669.03,668.56,0.47560778]
[1748126543344,0.94639366,669.02,668.56,0.47560778]
[1748126543658,0.94639366,669.01,668.56,0.47560778]
[1748126543945,1.10976165,669.21,668.56,0.47560778]
[1748126544140,1.59358803,669.2,668.56,0.47560778]
[1748126544339,2.53905692,669.19,668.56,0.47560778]
[1748126544539,2.53905692,669.18,668.56,0.47560778]
[1748126544844,2.53905692,669.17,668.45,0.67816837]
[1748126545044,2.53905692,669.16,668.45,0.67816837]
[1748126545244,2.53905692,669.15,668.45,0.67816837]
[1748126545446,0.54730046,669.14,668.45,0.67816837]
[1748126545642,0.54730046,669.13,668.45,0.67816837]
[1748126545840,0.54730046,669.12,668.45,0.67816837]
[1748126546043,0.54730046,669.11,668.45,0.67816837]
[1748126546339,0.54730046,669.1,668.45,0.67816837]
[1748126546645,0.54730046,669.09,668.45,0.67816837]
[1748126546846,0.54730046,669.08,668.45,0.67816837]
[1748126547046,0.54730046,669.07,668.45,0.67816837]
[1748126547346,0.54730046,669.06,668.45,0.67816837]
[1748126547548,0.54730046,669.05,668.45,0.67816837]
[1748126547846,1.10976165,669.33,668.45,0.67816837]
[1748126548046,0.54717977,669.32,668.45,0.67816837]
[1748126548239,0.54717977,669.31,668.44,0.67816837]
[1748126548946,1.10976165,669.33,668.44,0.67816837]
[1748126549647,0.94536674,669.14,668.44,0.67816837]
[1748126549848,1.59329336,669.13,668.44,0.67816837]
[1748126550045,1.59329336,669.12,668.44,0.67816837]
[1748126550243,1.5931902,669.11,668.44,0.67816837]
[1748126550444,2.53855694,669.1,668.44,0.67816837]
[1748126550646,0.54717059,669.09,668.44,0.67816837]
[1748126550847,0.54717059,669.08,668.44,0.67816837]
[1748126551042,0.54717059,669.07,668.44,0.67816837]
[1748126551242,0.54717059,669.06,668.44,0.67816837]
[1748126551444,1.49253733,669.05,668.44,0.67816837]
[1748126551643,0.54717059,669.04,668.44,0.67816837]
[1748126551845,0.94536674,669.05,668.44,0.67816837]
[1748126552047,1.49247667,669.04,668.44,0.67816837]
[1748126552245,0.94536674,669.04,668.44,0.67816837]
[1748126552547,0.54708788,669.03,668.44,0.67816837]
[1748126552745,0.54708788,669.02,668.44,0.67816837]
[1748126552947,0.54708788,669.01,668.44,0.67816837]
[1748126553143,0.54708788,669.0,668.44,0.67816837]
[1748126553347,1.49245462,668.99,668.56,0.47560778]
[1748126553543,0.94536674,668.99,668.56,0.47560778]
[1748126553744,0.94536674,668.98,668.56,0.47560778]
[1748126554250,0.94536674,668.97,668.56,0.47560778]
[1748126554652,1.10976165,669.17,668.61,0.47560778]
[1748126554854,1.5927531,669.16,668.61,0.47560778]
[1748126555044,1.5927531,669.15,668.61,0.47560778]
[1748126555249,2.53841832,669.14,668.61,0.47560778]
[1748126555445,1.5927531,669.13,668.61,0.47560778]
[1748126555647,1.5927531,669.12,668.61,0.47560778]
[1748126555850,1.5927531,669.11,668.61,0.47560778]
[1748126556052,1.5927531,669.1,668.61,0.47560778]
[1748126556352,2.53841832,669.09,668.58,0.47560778]
[1748126556549,1.5927531,669.08,668.58,0.47560778]
[1748126556750,2.53841832,669.07,668.58,0.47560778]
[1748126556953,0.54701249,669.06,668.58,0.47560778]
[1748126557146,1.49267771,669.05,668.58,0.47560778]
[1748126557350,0.54701249,669.04,668.58,0.47560778]
[1748126557550,1.49267771,669.03,668.58,0.47560778]
[1748126557750,0.54701249,669.02,668.58,0.47560778]
[1748126557947,0.94566522,669.03,668.58,0.47560778]
[1748126558155,0.54704178,669.02,668.58,0.47560778]
[1748126558348,0.94566522,669.01,668.58,0.47560778]
[1748126558553,0.94566522,669.01,668.6,0.47560778]
[1748126558758,0.94566522,669.0,668.6,0.47560778]
[1748126559360,0.94566522,668.99,668.6,0.47560778]
[1748126559555,1.10976165,669.21,668.6,0.47560778]
[1748126559759,1.59329575,669.2,668.64,0.47560778]
[1748126559959,1.59329575,669.19,668.64,0.47560778]
[1748126560158,1.59329575,669.18,668.64,0.47560778]
[1748126560358,2.54132011,669.17,668.64,0.47560778]
[1748126560655,1.59329575,669.16,668.64,0.47560778]
[1748126560858,1.59329575,669.15,668.64,0.47560778]
[1748126561155,0.54733461,669.14,668.64,0.47560778]
[1748126561358,0.54733461,669.13,668.64,0.47560778]
[1748126561559,0.54733461,669.12,668.64,0.47560778]
[1748126561755,1.49535897,669.11,668.64,0.47560778]
[1748126561955,0.54733461,669.1,668.64,0.47560778]
[1748126562160,0.94802436,669.09,668.68,0.47560778]
[1748126562658,0.94802436,669.08,668.68,0.47560778]
[1748126563061,0.94802436,669.07,668.68,0.47560778]
[1748126563564,0.94802436,669.06,668.68,0.47560778]
[1748126564563,1.10976165,669.36,668.68,0.47560778]
[1748126564759,1.59445889,669.35,668.66,0.47560778]
[1748126564963,1.59445889,669.34,668.66,0.47560778]
[1748126565164,2.54607598,669.33,668.66,0.47560778]